Cogmind - Beta 13 @@@ ROGUE MODE // 2024.04.19 @ 20:18:33 Player: Zach Petti Result: Destroyed by G-34 Mercenary with Small Laser Performance ------------- Evolutions (1) 500 Regions Visited (2) 400 Robots Destroyed (35) 175 Value Destroyed (969) 969 Prototype IDs (0) 0 Alien Tech Used (0) 0 Bonus (69) 69 TOTAL SCORE: 2113 Bonus ------- High Alert Combat Kills 69 Cogmind --------- Core Integrity 0/400 Matter 266/300 Energy 114/125 System Corruption 0% Temperature Cool (12) Movement Rolling (90) Location -9/Materials Parts ------- > --- POWER (1) -------- Light Ion Engine > --- PROPULSION (2) --- Armored Wheel Armored Wheel > --- UTILITY (3) ------ Small Storage Unit Melee Analysis Suite Melee Analysis Suite > --- WEAPON (3) ------- EM Shotgun High-powered Shotgun Katana > --- INVENTORY (8) ---- Armored Wheel Armored Wheel Improved Heat Sink Medium Matter Pod (100) Sensor Array Katana Peak State ------------ > --- POWER ------------ Improved Ion Engine > --- PROPULSION ------- Armored Wheel Armored Wheel > --- UTILITY ---------- Cooling System Small Storage Unit Melee Analysis Suite > --- WEAPON ----------- Autogun High-powered Shotgun Katana > --- INVENTORY -------- Light Ion Engine Armored Wheel Armored Wheel Improved Heat Sink Medium Matter Pod Sensor Array High-powered Shotgun [Rating: 21] Favorites ----------- Power Improved Ion Engine Engine Improved Ion Engine Propulsion Armored Wheel Wheel Armored Wheel Utility Small Storage Unit Device Sensor Array Storage Small Storage Unit Processor Melee Analysis Suite Protection Medium Armor Plating Weapon High-powered Shotgun Energy Gun EM Pulse Gun Ballistic Gun High-powered Shotgun Launcher Mini Grenade Launcher Slashing Weapon Katana Build | -11 -10 -9 ------- Run | Yrd Mat Mat Slots Evolved 2 | . . 2 Power . | . . . Propulsion . | . . . Utility 1 | . . 1 Weapon 1 | . . 1 Parts Attached 33 | 5 12 16 Power 4 | 1 1 2 Engine 4 | 1 1 2 Core . | . . . Reactor . | . . . Propulsion 7 | 2 3 2 Treads . | . . . Leg . | . . . Wheel 7 | 2 3 2 Hover . | . . . Flight . | . . . Utility 8 | . 3 5 Device 2 | . . 2 Storage 1 | . 1 . Processor 3 | . 1 2 Hackware . | . . . Protection 2 | . 1 1 Artifact . | . . . Weapon 14 | 2 5 7 Energy Gun 3 | 1 1 1 Energy Cannon . | . . . Ballistic Gun 8 | 1 3 4 Ballistic Cannon . | . . . Launcher 1 | . 1 . Special Weapon . | . . . Impact Weapon . | . . . Slashing Weapon 2 | . . 2 Piercing Weapon . | . . . Special Melee Weapon . | . . . Unidentified Prototypes . | . . . Parts Lost 12 | . 6 6 Power 1 | . 1 . Propulsion 3 | . 2 1 Utility 2 | . . 2 Weapon 6 | . 3 3 Highest Loss Streak 6 | . 6 2 To Critical Strikes . | . . . Average Slot Usage (%) 91 | . 88 94 Engine 11 | . 13 10 Wheel 20 | . 21 19 Device 5 | . . 10 Storage 12 | . 14 11 Processor 5 | . 4 6 Protection 4 | . 6 3 Energy Gun 3 | . 5 1 Ballistic Gun 17 | . 15 19 Launcher 6 | . 6 6 Slashing Weapon 2 | . . 4 Naked Turns . | . . . Heaviest Build 27 | 8 17 27 Greatest Support 26 | 26 26 24 Greatest Overweight (x) 3 | . 3 1 Average Overweight (x) . | . . . Largest Inventory Capacity 8 | 5 8 8 Average Capacity 7 | 5 8 8 Most Carried 8 | 5 8 8 Average Carried 6 | 2 5 7 Final Capacity 8 | 5 8 8 Final Carried 8 | 5 8 6 Class Distribution -------------------- 67% | Mutant 14% | Tank 13% | Skirmisher 5% | Bomber Dominant Class ---------------- Mutant | -10/Materials Mutant | -9/Materials Resources | -11 -10 -9 ----------- Run | Yrd Mat Mat Matter Collected 999 | 227 259 513 Remotely . | . . . Salvage Created 1036 | . 221 815 Parts 89 | . 22 67 Haulers Intercepted . | . . . Recyclers Shooed 1 | . 1 . Parts Field Recycled . | . . . Retrieved Matter . | . . . Parts Self-Destructed . | . . . Prevented . | . . . Kills | -11 -10 -9 ------- Run | Yrd Mat Mat Combat Hostiles Destroyed 29 | . 7 22 Melee 4 | . . 4 Guns 21 | . 5 16 AOE 4 | . 2 2 Classes Destroyed 6 | . 3 3 Worker 1 | . . 1 Watcher 5 | . 2 3 Swarmer 10 | . 3 7 Grunt 10 | . 4 6 Duelist 2 | . . 2 Sentry 7 | . . 7 Best Kill Streak 7 | . 3 7 Combat Bots Only 5 | . 3 5 Max Kills in Single Turn 2 | . 2 2 Gunslinging . | . . . Exploded 1 | . 1 1 Melee 1 | . . 1 Uniques/NPCs Destroyed . | . . . Combat | -11 -10 -9 -------- Run | Yrd Mat Mat Hostile Shots Fired 242 | . 105 137 Missed 65 | . 29 36 Damage Taken 2080 | . 754 1326 Core 589 | . 187 402 Absorbed by Shields . | . . . Core Remaining (%) 62 | 100 25 . Volleys Fired 96 | . 35 61 Largest 2 | . 2 2 Hottest 70 | . 60 70 Shots Fired 163 | . 61 102 Gun 157 | . 59 98 Cannon . | . . . Launcher 6 | . 2 4 Special . | . . . Kinetic 142 | . 50 92 Thermal . | . . . Explosive 6 | . 2 4 Electromagnetic 15 | . 9 6 Robot Hit Streak 8 | . 6 8 Robot Miss Streak 7 | . 5 7 Penetration Max . | . . . Secondary Targets 3 | . 1 2 Max Gunslinging Chain 1 | . 1 1 Shots Hit Robots 99 | . 35 64 Core Hits 63 | . 18 45 Critical Kills 1 | . . 1 Critical Parts Destroyed 1 | . . 1 Critical Strikes 4 | . 1 3 Destroy 2 | . . 2 Corrupt 1 | . 1 . Sever 1 | . . 1 Melee Attacks 12 | . . 12 Impact . | . . . Slashing 12 | . . 12 Piercing . | . . . Sneak Attacks . | . . . Combat Hostiles . | . . . Follow-up Attacks . | . . . Damage Inflicted 1929 | . 532 1397 Guns 1440 | . 361 1079 Cannons . | . . . Explosions 287 | . 171 116 Melee 201 | . . 201 Ramming 1 | . . 1 Kinetic 1270 | . 253 1017 Thermal 41 | . 41 . Explosive 246 | . 130 116 Electromagnetic 170 | . 108 62 Impact . | . . . Slashing 201 | . . 201 Piercing . | . . . Highest Corruption 1 | . 1 . Average Corruption 1 | . 1 . Corruption Purged . | . . . Corruption Blocked . | . . . Effects 2 | . 2 . Message Errors 1 | . 1 . Data Loss (minor) 1 | . 1 . Overload Shots . | . . . Overflow Damage . | . . . Projectiles . | . . . Explosions . | . . . Melee . | . . . Knockbacks . | . . . Impact . | . . . Kinetic . | . . . Secondary . | . . . Self-Inflicted Damage . | . . . Shots . | . . . Rammed 1 | . . 1 Targets Rammed 1 | . . 1 Kicked . | . . . Crushed . | . . . Highest Temperature 65 | . 65 34 Average Temperature 17 | . 24 12 Received Heat Transfer 621 | . 252 369 Siege Activations . | . . . Robots Corrupted . | . . . Combat Hostiles . | . . . Parts Fried . | . . . Impact Corruptions . | . . . Robots Melted . | . . . Combat Hostiles . | . . . Parts Melted . | . . . Heat Transferred . | . . . Parts Sabotaged . | . . . Parts Stolen . | . . . Parts Stripped . | . . . Power Chain Reactions 1 | . 1 . Alert | -11 -10 -9 ------- Run | Yrd Mat Mat Peak Influence 565 | . 119 565 Initial 35 | . . 35 Average 210 | . 49 337 Maximum Alert Level 2 | . . 2 Low Security (%) 57 | 100 100 24 Level 1 14 | . . 25 Level 2 28 | . . 50 Level 3 . | . . . Level 4 . | . . . Level 5 . | . . . High Security . | . . . Max Security . | . . . Squads Dispatched 2 | . 1 1 Investigation . | . . . Extermination . | . . . Reinforcement 1 | . 1 . Assault 1 | . . 1 Garrison . | . . . Intercept . | . . . Searches Triggered . | . . . Construction Impeded . | . . . Haulers Reinforced . | . . . Active Scanning Responses . | . . . Cargo Convoy Interrupts . | . . . Stealth | -11 -10 -9 --------- Run | Yrd Mat Mat Distress Signals 2 | . . 2 Communications Jammed . | . . . Distress Signals . | . . . Times Spotted 47 | . 12 35 Peak Tracking Total 6 | . 6 4 Tactical Retreats 3 | . . 3 Traps | -11 -10 -9 ------- Run | Yrd Mat Mat Traps Triggered 5 | . 1 4 Indirectly . | . . . Trap Hack Attempts . | . . . Triggered . | . . . Disarmed . | . . . Reprogrammed . | . . . Reused . | . . . Traps Extracted . | . . . Installed . | . . . Triggered . | . . . Machines | -11 -10 -9 ---------- Run | Yrd Mat Mat Machines Disabled . | . . . Max in Single Turn . | . . . Machines Repaired . | . . . Machines Dismantled . | . . . Machines Sabotaged . | . . . Overloaded Fab Kills . | . . . Hacking | -11 -10 -9 --------- Run | Yrd Mat Mat Machines Accessed 10 | . 5 5 Terminals 7 | . 4 3 Fabricators . | . . . Repair Stations 1 | . . 1 Recycling Units 1 | . 1 . Scanalyzers 1 | . . 1 Garrison Access . | . . . Total Hacks 19 | . 8 11 Successful 11 | . 6 5 Failed 8 | . 2 6 Catastrophic . | . . . Database Lockouts . | . . . Manual . | . . . Terminals 10 | . 4 6 Fabricators . | . . . Repair Stations 2 | . . 2 Recycling Units 4 | . 4 . Scanalyzers 3 | . . 3 Garrison Access . | . . . Terminal Hacks 4 | . 2 2 Record 1 | . . 1 Alert Level 2 | . 1 1 Maintenance Status 1 | . 1 . Fabricator Hacks . | . . . Repair Station Hacks . | . . . Recycling Unit Hacks 4 | . 4 . Recycle Component 2 | . 2 . Process 1 | . 1 . Retrieve Matter 1 | . 1 . Scanalyzer 3 | . . 3 Insert Component 1 | . . 1 Analyze 2 | . . 2 Garrison Access Hacks . | . . . Unauthorized Hacks . | . . . Terminals . | . . . Fabricators . | . . . Repair Stations . | . . . Recycling Units . | . . . Scanalyzers . | . . . Garrison Access . | . . . Data Cores Recovered . | . . . Used . | . . . Hacking Detections 7 | . 3 4 Full Trace Events . | . . . Feedback Events . | . . . Feedback Blocked . | . . . Robot Schematics Acquired . | . . . Robots Built . | . . . Authchips . | . . . Time . | . . . Total Robot Build Rating . | . . . Part Schematics Acquired 1 | . . 1 Parts Built . | . . . Authchips . | . . . Time . | . . . Total Part Build Rating . | . . . Parts Repaired . | . . . Time . | . . . Parts Recycled 2 | . 2 . Recycled Matter 90 | . 90 . Retrieved Matter 90 | . 90 . Retrieved Components . | . . . Parts Scanalyzed 1 | . . 1 Part Schematics Acquired 1 | . . 1 Parts Damaged . | . . . Bothacking | -11 -10 -9 ------------ Run | Yrd Mat Mat Used RIF Installer . | . . . Robots Hacked . | . . . Non-combat . | . . . Combat . | . . . Robot Hacks Applied . | . . . Relay Couplers Released . | . . . Fabnet Peak Effective % . | . . . Robots Rewired . | . . . Allies Hacked . | . . . Hacks Repelled . | . . . Allies | -11 -10 -9 -------- Run | Yrd Mat Mat Total Allies . | . . . Largest Group . | . . . Highest-Rated Group . | . . . Highest-Rated Ally . | . . . Total Orders . | . . . Ally Attacks . | . . . Total Damage . | . . . Kills . | . . . Allies Corrupted . | . . . Allies Melted . | . . . Intel | -11 -10 -9 ------- Run | Yrd Mat Mat Robot Analysis Total . | . . . Derelict Logs Recovered . | . . . Drone Launches . | . . . Drone Recoveries . | . . . Exploration | -11 -10 -9 ------------- Run | Yrd Mat Mat Turns Passed 1436 | 55 569 812 Spaces Moved 1147 | 43 495 609 Core 7 | 4 3 . Treads . | . . . Legs . | . . . Wheels 1140 | 39 492 609 Hover . | . . . Flight . | . . . Fastest Speed 50 | 50 80 90 Average Speed 94 | 86 91 96 Slowest Speed 200 | 90 200 105 Overloaded Moves . | . . . Propulsion Burnouts . | . . . Robots Hopped . | . . . Cave-ins Triggered . | . . . Exploration Rate (%) 47 | 4 70 67 Regions Visited 2 Branch Regions . Pre-discovered Areas . | . . . Known Exits Taken . | . . . Unknown Exits Taken 2 | 1 1 . Scrap Searched . | . . . Spaces Dug . | . . . Terrain Destroyed 64 | . 27 37 Melee . | . . . Projectile . | . . . AOE 64 | . 27 37 Terrain Rammed . | . . . Walls Destroyed . | . . . Machines Disabled . | . . . Actions | -11 -10 -9 --------- Run | Yrd Mat Mat Total 1342 | 60 555 727 Wait 10 | 3 . 7 Move 1145 | 42 494 609 Hop . | . . . Pick Up 38 | 10 14 14 Fast Attach . | . . . Attach 24 | 5 8 11 Detach 1 | . . 1 Swap 9 | . 4 5 Drop 6 | . . 6 Fire 96 | . 35 61 Melee 12 | . . 12 Ram 1 | . . 1 Kick . | . . . Crush . | . . . Escape Stasis . | . . . Rewire . | . . . Trap . | . . . Miscellaneous . | . . . Route ------- -11/Scrapyard -10/Materials (discovered 2 exits: *Mat x2) -9/Materials (discovered 5 exits: [*Mat x3] / [*Sto x2]) History --------- Turn | Location | Event 4 | -11/Scrapyard | Discovered new exit (range 16) 56 | -11/Scrapyard | Entered Materials 306 | -10/Materials | Core integrity fell below 50% 314 | -10/Materials | Build established: Mutant 325 | -10/Materials | Lost 6 parts (1p2n3w) 342 | -10/Materials | Discovered new exit (range 13) 567 | -10/Materials | Discovered new exit (range 16) 625 | -10/Materials | Entered another Materials area 625 | -9/Materials | Evolved 2 slots: Utility x1, Weapon x1 777 | -9/Materials | Discovered new exit (range 8) 985 | -9/Materials | Discovered new exit (range 15) 1025 | -9/Materials | Discovered new exit (range 15) 1091 | -9/Materials | Core integrity fell below 50% 1194 | -9/Materials | Discovered new exit (range 16) 1300 | -9/Materials | Core integrity fell below 20% 1385 | -9/Materials | Discovered new exit (range 4) 1425 | -9/Materials | First assault squad dispatched 1437 | -9/Materials | Destroyed by G-34 Mercenary with Small Laser Last Messages --------------- Scanning: Katana... Scan incomplete, additional scanning required. >>Scanalyze Scanning: Katana... Schematic downloaded. EXIT=FOUND Acquired Arm. Wheel. W-16 Scout destroyed. K-01 Serf collects debris. Acquired 7 matter. Acquired 31 matter. K-01 Serf collects debris. ALERT: Significant disruption in Zone 1E, assault force dispatched. [Achievement: Significant Disruption] C-30 ARC bursts open, deploying its payload. G-47 Trooper unfolds itself. G-34 Mercenary unfolds itself. M-13 Machinist unfolds itself. G-47 Trooper destroyed. Map ----- +----------------------------------------------------+ | | | | | | | | | | | | | ?????????????????????????????????????????????????? | | ?????????????????????????????????????????????????? | | ?????????????????????????????????????????????????? | | ??????????????????????###????????????????????????? | | ???????????????????#### ####?????????????????????? | | ???????????????????# *=!! #?????????????????????? | | ###############????# """ #??????###????????????? | | ????# R" #?????? #????????????? | | #??# #????# """ # ???? #????????????? | | #??# ###### # """ #????????????? | | ### ##??# # """ # """ #????????????? | | ??# #???# + """ !# #????????????? | | ###+##### # """ # """ ############?? | | # # # """ # # #?? | | """ # !!! # # """ # < # #?? | | """ # !!* # ]# # # """ #?? | | """ # !!* ##############+### + """ #?? | | # = ! gg % # """ #?? | | """ + % k ! %m # #?? | | """ # r @ g ########?? | | """ # #######+##############????????? | | #!!! "#???# #??????????????????? | | #########!!! T#???# "S #??????????????????? | | ????????#!!! "#???# """ #??????????????????? | | ?????? #???# "" #??????????????????? | | ???? #???# #??????????????????? | | ???? #### #???# #??????????????????? | | ???#######+##??# #???########??????????????????? | | ???????????????# #?????????????????????????????? | | ???????????????# #?????????????????????????????? | | ???????????????# +?????????????????????????????? | | ???????????????# #?????????????????????????????? | | ???????????????# #?????????????????????????????? | | ???????????????? #?????????????????????????????? | | ???????????????? ??????????????????????????????? | | ???????????????? ??????????????????????????????? | | ?????????????????????????????????????????????????? | | ?????????????????????????????????????????????????? | | ?????????????????????????????????????????????????? | | ?????????????????????????????????????????????????? | | ?????????????????????????????????????????????????? | | ?????????????????????????????????????????????????? | | ?????????????????????????????????????????????????? | | ?????????????????????????????????????????????????? | +----------------------------------------------------+ Best States ------------- Heat Dissipation 50 Energy Generation 12 Energy Capacity 265 Matter Stores 300 Matter Capacity 300 Sight Range 16 Robot Scan Range 14 Terrain Scan Density 10 Armor Coverage 225 Evasion (%) 44 Melee Accuracy 10 Item Schematics ----------------- Katana | -9/Materials | Scanalyzed Robot Schematics ------------------ None Fabricated ------------ Nothing Alien Tech Used ----------------- None Achievements -------------- Significant Disruption Challenges ------------ None Game ------ Seed XenonIntegrityTerminator Manual? 0 Play Time 00:21:37 Cumulative 1.4 hours Start 2024.04.19 @ 20:00:14 End 2024.04.19 @ 20:18:33 Sessions 1 Manual Loads 0 Difficulty Rogue Special Mode None Game No. 6 Rogue 6 Adventurer 0 Explorer 0 Win Type - Total 0 Types 0/0/0/0/0/0/0/0/0 Lore% 2 Gallery% 7 Achievement% 7 Wizard Run 0 Options --------- Layout 1 ASCII 0 Keyboard 0 Movement Arrows Keybinds 0 Fullscreen 2 Font 32/SmallcapsGlow Map View 50x35 Zoom Use 0% Tactical HUD 0 Map Filters NONE Filters NONE Steam 1 RUN: 40bdb1c5-0b1e-4a1d-89a3-a32970d2dff4